[Event "Titled Tuesday Blitz March 15 Early 2022"]
[White "Hambleton, Aman"]
[Black "Shtyka, Sergey"]
[WhiteFideId "2606577"]
[BlackFideId "4138465"]
[WhiteElo "2552"]
[BlackElo "2014"]
[Result "1-0"]
[Round "03"]
[TimeControl "180+1"]
[Date "2022.03.15"]
[WhiteClock "0:00:06"]
[BlackClock "0:00:04"]

1. d4 {[%clk 0:02:58]}  c5 {[%clk 0:02:58]} 2. d5 {[%clk 0:02:55]}  e5 {[%clk 0:02:58]} 3. c4 {[%clk 0:02:44]}  d6 {[%clk 0:02:58]} 4. Nc3 {[%clk 0:02:35]}  Be7 {[%clk 0:02:58]} 5. g3 {[%clk 0:02:28]}  Nf6 {[%clk 0:02:57]} 6. Bg2 {[%clk 0:02:24]}  O-O {[%clk 0:02:57]} 7. e4 {[%clk 0:02:17]}  Nbd7 {[%clk 0:02:55]} 8. Nf3 {[%clk 0:02:12]}  Ne8 {[%clk 0:02:54]} 9. O-O {[%clk 0:02:11]}  Nc7 {[%clk 0:02:53]} 10. a4 {[%clk 0:01:58]}  b6 {[%clk 0:02:47]} 11. Ne1 {[%clk 0:01:52]}  a6 {[%clk 0:02:46]} 12. Nd3 {[%clk 0:01:50]}  Rb8 {[%clk 0:02:42]} 13. f4 {[%clk 0:01:29]}  Bf6 {[%clk 0:02:39]} 14. f5 {[%clk 0:01:17]}  b5 {[%clk 0:02:38]} 15. axb5 {[%clk 0:01:17]}  axb5 {[%clk 0:02:38]} 16. b3 {[%clk 0:01:18]}  bxc4 {[%clk 0:02:31]} 17. bxc4 {[%clk 0:01:18]}  Nb6 {[%clk 0:02:31]} 18. Nb2 {[%clk 0:00:38]}  Ba6 {[%clk 0:02:08]} 19. Qd3 {[%clk 0:00:15]}  Ra8 {[%clk 0:02:07]} 20. Be3 {[%clk 0:00:10]}  Bg5 {[%clk 0:02:03]} 21. Bf2 {[%clk 0:00:10]}  Qd7 {[%clk 0:01:41]} 22. h4 {[%clk 0:00:10]}  Be7 {[%clk 0:01:41]} 23. Rfb1 {[%clk 0:00:10]}  Rfb8 {[%clk 0:01:40]} 24. Bf1 {[%clk 0:00:11]}  Bc8 {[%clk 0:01:32]} 25. Qc2 {[%clk 0:00:10]}  g6 {[%clk 0:01:25]} 26. Bd3 {[%clk 0:00:10]}  Na6 {[%clk 0:01:10]} 27. Na2 {[%clk 0:00:04]}  Qc7 {[%clk 0:01:01]} 28. Nd1 {[%clk 0:00:03]}  Bd7 {[%clk 0:00:59]} 29. Ndc3 {[%clk 0:00:03]}  Kg7 {[%clk 0:00:46]} 30. Kh2 {[%clk 0:00:04]}  Nb4 {[%clk 0:00:28]} 31. Nxb4 {[%clk 0:00:04]}  Rxa1 {[%clk 0:00:27]} 32. Rxa1 {[%clk 0:00:05]}  cxb4 {[%clk 0:00:27]} 33. Nd1 {[%clk 0:00:04]}  Qb7 {[%clk 0:00:14]} 34. Nb2 {[%clk 0:00:03]}  Be8 {[%clk 0:00:13]} 35. g4 {[%clk 0:00:02]}  Ra8 {[%clk 0:00:12]} 36. Rc1 {[%clk 0:00:01]}  Nd7 {[%clk 0:00:11]} 37. g5 {[%clk 0:00:01]}  f6 {[%clk 0:00:09]} 38. gxf6+ {[%clk 0:00:01]}  Bxf6 {[%clk 0:00:10]} 39. Bg3 {[%clk 0:00:01]}  b3 {[%clk 0:00:10]} 40. Qd2 {[%clk 0:00:01]}  Ra2 {[%clk 0:00:11]} 41. Rb1 {[%clk 0:00:01]}  Nc5 {[%clk 0:00:10]} 42. fxg6 {[%clk 0:00:01]}  Bxg6 {[%clk 0:00:09]} 43. Qe3 {[%clk 0:00:02]}  Qe7 {[%clk 0:00:05]} 44. h5 {[%clk 0:00:02]}  Bg5 {[%clk 0:00:05]} 45. Qg1 {[%clk 0:00:01]}  Bxh5 {[%clk 0:00:05]} 46. Bh4 {[%clk 0:00:02]}  h6 {[%clk 0:00:05]} 47. Bf1 {[%clk 0:00:01]}  Kh7 {[%clk 0:00:04]} 48. Bf2 {[%clk 0:00:02]}  Bf4+ {[%clk 0:00:04]} 49. Kh1 {[%clk 0:00:02]}  Qg5 {[%clk 0:00:04]} 50. Qxg5 {[%clk 0:00:02]}  hxg5 {[%clk 0:00:05]} 51. Bxc5 {[%clk 0:00:02]}  dxc5 {[%clk 0:00:05]} 52. Bg2 {[%clk 0:00:01]}  g4 {[%clk 0:00:05]} 53. Nd3 {[%clk 0:00:02]}  Bg6 {[%clk 0:00:03]} 54. Nxc5 {[%clk 0:00:02]}  g3 {[%clk 0:00:03]} 55. Nxb3 {[%clk 0:00:02]}  Rf2 {[%clk 0:00:03]} 56. c5 {[%clk 0:00:02]}  Be8 {[%clk 0:00:02]} 57. c6 {[%clk 0:00:02]}  Rc2 {[%clk 0:00:03]} 58. Na5 {[%clk 0:00:02]}  Rc5 {[%clk 0:00:02]} 59. Nb7 {[%clk 0:00:02]}  Rc2 {[%clk 0:00:02]} 60. Rd1 {[%clk 0:00:02]}  Be3 {[%clk 0:00:01]} 61. Nd8 {[%clk 0:00:02]}  Bd4 {[%clk 0:00:01]} 62. Ne6 {[%clk 0:00:02]}  Rc3 {[%clk 0:00:01]} 63. Nxd4 {[%clk 0:00:02]}  exd4 {[%clk 0:00:02]} 64. Kg1 {[%clk 0:00:02]}  d3 {[%clk 0:00:02]} 65. e5 {[%clk 0:00:02]}  Bh5 {[%clk 0:00:02]} 66. Rxd3 {[%clk 0:00:02]}  Rc1+ {[%clk 0:00:01]} 67. Bf1 {[%clk 0:00:03]}  Be2 {[%clk 0:00:01]} 68. Rxg3 {[%clk 0:00:03]}  Rxf1+ {[%clk 0:00:01]} 69. Kg2 {[%clk 0:00:03]}  Rd1 {[%clk 0:00:02]} 70. Kf2 {[%clk 0:00:02]}  Bc4 {[%clk 0:00:02]} 71. d6 {[%clk 0:00:02]}  Bb5 {[%clk 0:00:03]} 72. c7 {[%clk 0:00:01]}  Bd7 {[%clk 0:00:03]} 73. Rc3 {[%clk 0:00:02]}  Rd2+ {[%clk 0:00:03]} 74. Ke3 {[%clk 0:00:02]}  Rd1 {[%clk 0:00:03]} 75. c8=Q {[%clk 0:00:02]}  Bxc8 {[%clk 0:00:04]} 76. Rxc8 {[%clk 0:00:03]}  Re1+ {[%clk 0:00:04]} 77. Kd4 {[%clk 0:00:04]}  Rd1+ {[%clk 0:00:04]} 78. Ke4 {[%clk 0:00:04]}  Re1+ {[%clk 0:00:04]} 79. Kf5 {[%clk 0:00:05]}  Rf1+ {[%clk 0:00:05]} 80. Ke6 {[%clk 0:00:06]}  Rg1 {[%clk 0:00:04]} 81. Rf8 {[%clk 0:00:06]}  Rg6+ {[%clk 0:00:04]} 82. Rf6 {[%clk 0:00:06]}  Rg7 {[%clk 0:00:04]} 83. Rf7 {[%clk 0:00:06]} 1-0


[Site "https://www.chess.com"]

[Event "Titled Tuesday Blitz March 15 Early 2022"]
[White "Hammer, Jon Ludvig"]
[Black "Kevlishvili, Robby"]
[WhiteFideId "1503707"]
[BlackFideId "1040634"]
[WhiteElo "2607"]
[BlackElo "2584"]
[Result "1-0"]
[Round "03"]
[TimeControl "180+1"]
[Date "2022.03.15"]
[WhiteClock "0:00:23"]
[BlackClock "0:00:14"]

1. d4 {[%clk 0:03:00]}  d5 {[%clk 0:02:59]} 2. c4 {[%clk 0:02:59]}  c6 {[%clk 0:02:58]} 3. Nf3 {[%clk 0:02:59]}  Nf6 {[%clk 0:02:58]} 4. Nc3 {[%clk 0:02:57]}  e6 {[%clk 0:02:58]} 5. Bg5 {[%clk 0:02:52]}  h6 {[%clk 0:02:58]} 6. Bxf6 {[%clk 0:02:52]}  Qxf6 {[%clk 0:02:59]} 7. e3 {[%clk 0:02:48]}  Nd7 {[%clk 0:02:59]} 8. Bd3 {[%clk 0:02:41]}  g6 {[%clk 0:02:58]} 9. O-O {[%clk 0:02:40]}  Bg7 {[%clk 0:02:57]} 10. h3 {[%clk 0:02:28]}  O-O {[%clk 0:02:57]} 11. a3 {[%clk 0:02:28]}  b6 {[%clk 0:02:46]} 12. cxd5 {[%clk 0:02:26]}  exd5 {[%clk 0:02:45]} 13. b4 {[%clk 0:02:15]}  Bb7 {[%clk 0:02:44]} 14. Qb3 {[%clk 0:02:15]}  Qd6 {[%clk 0:02:35]} 15. Rad1 {[%clk 0:02:08]}  a5 {[%clk 0:02:29]} 16. e4 {[%clk 0:02:06]}  dxe4 {[%clk 0:02:25]} 17. Nxe4 {[%clk 0:02:07]}  Qd5 {[%clk 0:02:23]} 18. Qxd5 {[%clk 0:02:07]}  cxd5 {[%clk 0:02:22]} 19. Nd6 {[%clk 0:02:07]}  Bc8 {[%clk 0:01:56]} 20. Rc1 {[%clk 0:01:57]}  axb4 {[%clk 0:01:54]} 21. axb4 {[%clk 0:01:57]}  Nf6 {[%clk 0:01:54]} 22. Rc6 {[%clk 0:01:49]}  Be6 {[%clk 0:01:44]} 23. Ne5 {[%clk 0:01:17]}  Rfb8 {[%clk 0:01:22]} 24. f4 {[%clk 0:01:00]}  Ra4 {[%clk 0:00:55]} 25. f5 {[%clk 0:01:00]}  gxf5 {[%clk 0:00:53]} 26. Bxf5 {[%clk 0:01:01]}  Rxb4 {[%clk 0:00:41]} 27. Rc7 {[%clk 0:00:45]}  Ne8 {[%clk 0:00:18]} 28. Nxe8 {[%clk 0:00:46]}  Rxe8 {[%clk 0:00:19]} 29. Bxe6 {[%clk 0:00:46]}  fxe6 {[%clk 0:00:16]} 30. Rff7 {[%clk 0:00:38]}  Bh8 {[%clk 0:00:17]} 31. Ng4 {[%clk 0:00:30]}  Bxd4+ {[%clk 0:00:14]} 32. Kh2 {[%clk 0:00:23]} 1-0


[Site "https://www.chess.com"]

[Event "Titled Tuesday Blitz March 15 Early 2022"]
[White "Harikrishna, Pentala"]
[Black "Khabinets, Ivan"]
[WhiteFideId "5007003"]
[BlackFideId "14115980"]
[WhiteElo "2574"]
[BlackElo "2114"]
[Result "1-0"]
[Round "03"]
[TimeControl "180+1"]
[Date "2022.03.15"]
[WhiteClock "0:00:07"]
[BlackClock "0:00:40"]

1. e4 {[%clk 0:02:16]}  c5 {[%clk 0:02:59]} 2. Nf3 {[%clk 0:02:17]}  d6 {[%clk 0:03:00]} 3. c3 {[%clk 0:02:13]}  Nf6 {[%clk 0:03:00]} 4. Be2 {[%clk 0:02:13]}  g6 {[%clk 0:02:59]} 5. O-O {[%clk 0:02:13]}  Bg7 {[%clk 0:02:59]} 6. Bb5+ {[%clk 0:02:13]}  Bd7 {[%clk 0:02:56]} 7. Bxd7+ {[%clk 0:02:12]}  Qxd7 {[%clk 0:02:56]} 8. Re1 {[%clk 0:02:12]}  O-O {[%clk 0:02:49]} 9. d4 {[%clk 0:02:11]}  cxd4 {[%clk 0:02:49]} 10. cxd4 {[%clk 0:02:12]}  Nc6 {[%clk 0:02:49]} 11. Nc3 {[%clk 0:01:53]}  Rfd8 {[%clk 0:02:42]} 12. h3 {[%clk 0:01:32]}  Rac8 {[%clk 0:02:42]} 13. Bg5 {[%clk 0:01:27]}  h6 {[%clk 0:02:32]} 14. Bh4 {[%clk 0:01:25]}  g5 {[%clk 0:02:32]} 15. Bg3 {[%clk 0:01:24]}  Nh5 {[%clk 0:02:32]} 16. Bh2 {[%clk 0:01:22]}  g4 {[%clk 0:02:17]} 17. Nh4 {[%clk 0:01:16]}  g3 {[%clk 0:01:58]} 18. Qxh5 {[%clk 0:01:14]}  gxh2+ {[%clk 0:01:55]} 19. Kxh2 {[%clk 0:01:14]}  Nxd4 {[%clk 0:01:55]} 20. Rad1 {[%clk 0:00:24]}  e6 {[%clk 0:01:55]} 21. Rd3 {[%clk 0:00:22]}  Qe7 {[%clk 0:01:50]} 22. f4 {[%clk 0:00:12]}  Rc5 {[%clk 0:01:44]} 23. Qg4 {[%clk 0:00:12]}  Kh7 {[%clk 0:01:36]} 24. Red1 {[%clk 0:00:09]}  Nc6 {[%clk 0:01:30]} 25. Rg3 {[%clk 0:00:09]}  Rg8 {[%clk 0:01:22]} 26. e5 {[%clk 0:00:05]}  dxe5 {[%clk 0:01:19]} 27. Ne4 {[%clk 0:00:02]}  f5 {[%clk 0:01:05]} 28. Qg6+ {[%clk 0:00:01]}  Kh8 {[%clk 0:01:05]} 29. Nxc5 {[%clk 0:00:01]}  Qxc5 {[%clk 0:01:04]} 30. Qxe6 {[%clk 0:00:01]}  exf4 {[%clk 0:01:04]} 31. Ng6+ {[%clk 0:00:01]}  Kh7 {[%clk 0:01:04]} 32. Nxf4 {[%clk 0:00:02]}  Nd4 {[%clk 0:00:47]} 33. Qg6+ {[%clk 0:00:02]}  Kh8 {[%clk 0:00:48]} 34. Ne6 {[%clk 0:00:02]}  Nxe6 {[%clk 0:00:47]} 35. Qxe6 {[%clk 0:00:03]}  Qc7 {[%clk 0:00:39]} 36. Rd7 {[%clk 0:00:02]}  Qf4 {[%clk 0:00:39]} 37. Qg6 {[%clk 0:00:01]}  Qe5 {[%clk 0:00:34]} 38. Rxg7 {[%clk 0:00:01]}  Rxg7 {[%clk 0:00:34]} 39. Qxh6+ {[%clk 0:00:01]}  Kg8 {[%clk 0:00:34]} 40. Qxg7+ {[%clk 0:00:02]}  Qxg7 {[%clk 0:00:35]} 41. Rxg7+ {[%clk 0:00:02]}  Kxg7 {[%clk 0:00:36]} 42. Kg3 {[%clk 0:00:03]}  Kf6 {[%clk 0:00:37]} 43. Kf4 {[%clk 0:00:04]}  Kg6 {[%clk 0:00:37]} 44. g4 {[%clk 0:00:04]}  fxg4 {[%clk 0:00:37]} 45. hxg4 {[%clk 0:00:05]}  Kf6 {[%clk 0:00:37]} 46. g5+ {[%clk 0:00:06]}  Kg6 {[%clk 0:00:38]} 47. Kg4 {[%clk 0:00:07]}  b6 {[%clk 0:00:38]} 48. Kf4 {[%clk 0:00:07]}  a6 {[%clk 0:00:39]} 49. Kg4 {[%clk 0:00:07]}  a5 {[%clk 0:00:40]} 1-0


[Site "https://www.chess.com"]

[Event "Titled Tuesday Blitz March 15 Early 2022"]
[White "Hess, Robert"]
[Black "Mekhitarian, Krikor Sevag"]
[WhiteFideId "2022036"]
[BlackFideId "2107660"]
[WhiteElo "2557"]
[BlackElo "2598"]
[Result "0-1"]
[Round "03"]
[TimeControl "180+1"]
[Date "2022.03.15"]
[WhiteClock "0:00:02"]
[BlackClock "0:00:27"]

1. b3 {[%clk 0:02:31]}  d5 {[%clk 0:02:54]} 2. Bb2 {[%clk 0:02:32]}  c5 {[%clk 0:02:54]} 3. e3 {[%clk 0:02:28]}  a6 {[%clk 0:02:53]} 4. h3 {[%clk 0:02:26]}  Nc6 {[%clk 0:02:52]} 5. Ne2 {[%clk 0:02:26]}  e5 {[%clk 0:02:42]} 6. d3 {[%clk 0:02:26]}  g6 {[%clk 0:02:38]} 7. Nd2 {[%clk 0:02:25]}  Bg7 {[%clk 0:02:38]} 8. g3 {[%clk 0:02:25]}  Nge7 {[%clk 0:02:38]} 9. Bg2 {[%clk 0:02:26]}  O-O {[%clk 0:02:38]} 10. a3 {[%clk 0:02:18]}  Be6 {[%clk 0:02:38]} 11. e4 {[%clk 0:02:05]}  Qd7 {[%clk 0:02:36]} 12. f4 {[%clk 0:02:01]}  Rad8 {[%clk 0:02:28]} 13. g4 {[%clk 0:01:50]}  exf4 {[%clk 0:02:27]} 14. Bxg7 {[%clk 0:01:49]}  Kxg7 {[%clk 0:02:27]} 15. Nxf4 {[%clk 0:01:47]}  d4 {[%clk 0:02:26]} 16. Nf3 {[%clk 0:01:41]}  Qd6 {[%clk 0:02:22]} 17. Qd2 {[%clk 0:01:41]}  Ne5 {[%clk 0:02:22]} 18. O-O {[%clk 0:01:12]}  N7c6 {[%clk 0:02:19]} 19. Rf2 {[%clk 0:01:09]}  Nxf3+ {[%clk 0:02:13]} 20. Bxf3 {[%clk 0:01:08]}  Ne5 {[%clk 0:02:13]} 21. Raf1 {[%clk 0:01:08]}  b5 {[%clk 0:02:06]} 22. Bd1 {[%clk 0:00:44]}  Qe7 {[%clk 0:01:40]} 23. Qa5 {[%clk 0:00:38]}  Rd6 {[%clk 0:01:29]} 24. a4 {[%clk 0:00:33]}  Rb8 {[%clk 0:01:15]} 25. Be2 {[%clk 0:00:22]}  Rc6 {[%clk 0:01:09]} 26. axb5 {[%clk 0:00:22]}  axb5 {[%clk 0:01:09]} 27. Qa1 {[%clk 0:00:17]}  Rd8 {[%clk 0:01:07]} 28. Qa5 {[%clk 0:00:15]}  Rb8 {[%clk 0:01:06]} 29. Ra1 {[%clk 0:00:15]}  Qh4 {[%clk 0:01:00]} 30. Raf1 {[%clk 0:00:13]}  Bd7 {[%clk 0:00:45]} 31. Qa7 {[%clk 0:00:09]}  Rd8 {[%clk 0:00:45]} 32. Qb7 {[%clk 0:00:05]}  Rf6 {[%clk 0:00:33]} 33. Qc7 {[%clk 0:00:02]}  Re8 {[%clk 0:00:27]} 0-1


[Site "https://www.chess.com"]

[Event "Titled Tuesday Blitz March 15 Early 2022"]
[White "Ismayil, Malak"]
[Black "Mitusov, Semen"]
[WhiteFideId "13412604"]
[BlackFideId "14151049"]
[WhiteElo "1879"]
[BlackElo "2265"]
[Result "0-1"]
[Round "03"]
[TimeControl "180+1"]
[Date "2022.03.15"]
[WhiteClock "0:00:55"]
[BlackClock "0:01:46"]

1. e4 {[%clk 0:02:53]}  e5 {[%clk 0:02:59]} 2. Nf3 {[%clk 0:02:52]}  Nc6 {[%clk 0:02:59]} 3. Bc4 {[%clk 0:02:52]}  Bc5 {[%clk 0:02:59]} 4. d3 {[%clk 0:02:51]}  Nf6 {[%clk 0:02:58]} 5. O-O {[%clk 0:02:51]}  d6 {[%clk 0:02:57]} 6. h3 {[%clk 0:02:47]}  h6 {[%clk 0:02:57]} 7. Nc3 {[%clk 0:02:44]}  g5 {[%clk 0:02:57]} 8. Be3 {[%clk 0:02:38]}  g4 {[%clk 0:02:56]} 9. hxg4 {[%clk 0:02:34]}  Bxg4 {[%clk 0:02:57]} 10. Qe2 {[%clk 0:02:27]}  Rg8 {[%clk 0:02:56]} 11. Rfd1 {[%clk 0:02:24]}  Nh5 {[%clk 0:02:38]} 12. Nd5 {[%clk 0:01:52]}  Nf4 {[%clk 0:02:23]} 13. Bxf4 {[%clk 0:01:25]}  Nd4 {[%clk 0:02:16]} 14. Qd2 {[%clk 0:01:00]}  Nxf3+ {[%clk 0:01:46]} 15. gxf3 {[%clk 0:00:57]}  Bxf3+ {[%clk 0:01:46]} 16. Bg3 {[%clk 0:00:55]}  Rxg3+ {[%clk 0:01:46]} 0-1


[Site "https://www.chess.com"]

[Event "Titled Tuesday Blitz March 15 Early 2022"]
[White "Jacobson, Aaron"]
[Black "Cramling Bellon, Anna"]
[WhiteFideId "2089912"]
[BlackFideId "32009232"]
[WhiteElo "2265"]
[BlackElo "1905"]
[Result "1-0"]
[Round "03"]
[TimeControl "180+1"]
[Date "2022.03.15"]
[WhiteClock "0:03:03"]
[BlackClock "0:00:02"]

1. e4 {[%clk 0:03:00]}  c5 {[%clk 0:02:57]} 2. Nf3 {[%clk 0:03:01]}  e6 {[%clk 0:02:54]} 3. d4 {[%clk 0:03:01]}  cxd4 {[%clk 0:02:54]} 4. Bg5 {[%clk 0:03:01]}  Qb6 {[%clk 0:02:35]} 5. Qxd4 {[%clk 0:03:01]}  Nc6 {[%clk 0:02:07]} 6. Qxb6 {[%clk 0:03:02]}  axb6 {[%clk 0:02:07]} 7. Nc3 {[%clk 0:03:02]}  f6 {[%clk 0:01:58]} 8. Bd2 {[%clk 0:03:02]}  Bc5 {[%clk 0:01:36]} 9. Nb5 {[%clk 0:03:00]}  Kd8 {[%clk 0:01:20]} 10. c3 {[%clk 0:03:00]}  Nge7 {[%clk 0:01:19]} 11. b4 {[%clk 0:03:00]}  Bxf2+ {[%clk 0:01:00]} 12. Kxf2 {[%clk 0:03:01]}  d5 {[%clk 0:00:59]} 13. exd5 {[%clk 0:03:00]}  Nxd5 {[%clk 0:00:54]} 14. Bc4 {[%clk 0:03:01]}  Nce7 {[%clk 0:00:40]} 15. Bb3 {[%clk 0:02:59]}  Bd7 {[%clk 0:00:38]} 16. c4 {[%clk 0:02:59]}  Bxb5 {[%clk 0:00:32]} 17. cxb5 {[%clk 0:03:00]}  Kd7 {[%clk 0:00:30]} 18. Rhc1 {[%clk 0:03:00]}  Rhc8 {[%clk 0:00:29]} 19. a4 {[%clk 0:03:01]}  e5 {[%clk 0:00:27]} 20. g3 {[%clk 0:03:00]}  g5 {[%clk 0:00:26]} 21. a5 {[%clk 0:03:00]}  g4 {[%clk 0:00:22]} 22. Ne1 {[%clk 0:03:01]}  f5 {[%clk 0:00:16]} 23. Ng2 {[%clk 0:03:01]}  bxa5 {[%clk 0:00:14]} 24. bxa5 {[%clk 0:03:01]}  Nf6 {[%clk 0:00:14]} 25. Ne3 {[%clk 0:03:02]}  Ne4+ {[%clk 0:00:14]} 26. Ke1 {[%clk 0:03:02]}  Nc5 {[%clk 0:00:08]} 27. Bc2 {[%clk 0:03:00]}  e4 {[%clk 0:00:07]} 28. Nc4 {[%clk 0:03:00]}  Ng6 {[%clk 0:00:06]} 29. Nb6+ {[%clk 0:03:01]}  Kd6 {[%clk 0:00:06]} 30. Bb4 {[%clk 0:03:01]}  Ke5 {[%clk 0:00:03]} 31. Nxa8 {[%clk 0:03:01]}  Nd3+ {[%clk 0:00:02]} 32. Bxd3 {[%clk 0:03:02]}  exd3 {[%clk 0:00:01]} 33. Rxc8 {[%clk 0:03:02]}  d2+ {[%clk 0:00:02]} 34. Kxd2 {[%clk 0:03:03]} 1-0


[Site "https://www.chess.com"]

[Event "Titled Tuesday Blitz March 15 Early 2022"]
[White "Jaferian, Koosha"]
[Black "Spitzl, Vinzent"]
[WhiteFideId "12507440"]
[BlackFideId "12901253"]
[WhiteElo "2030"]
[BlackElo "2160"]
[Result "1-0"]
[Round "03"]
[TimeControl "180+1"]
[Date "2022.03.15"]
[WhiteClock "0:01:04"]
[BlackClock "0:00:23"]

1. Nf3 {[%clk 0:03:00]}  Nf6 {[%clk 0:02:51]} 2. b3 {[%clk 0:03:00]}  e6 {[%clk 0:02:50]} 3. Bb2 {[%clk 0:03:01]}  Be7 {[%clk 0:02:50]} 4. e3 {[%clk 0:03:02]}  d5 {[%clk 0:02:51]} 5. Be2 {[%clk 0:03:02]}  O-O {[%clk 0:02:51]} 6. O-O {[%clk 0:03:03]}  c5 {[%clk 0:02:51]} 7. c4 {[%clk 0:03:04]}  Nc6 {[%clk 0:02:51]} 8. cxd5 {[%clk 0:03:05]}  Nxd5 {[%clk 0:02:51]} 9. d4 {[%clk 0:03:06]}  cxd4 {[%clk 0:02:49]} 10. Nxd4 {[%clk 0:03:07]}  Nxd4 {[%clk 0:02:49]} 11. Bxd4 {[%clk 0:03:07]}  Bd7 {[%clk 0:02:47]} 12. Nd2 {[%clk 0:03:06]}  Bf6 {[%clk 0:02:44]} 13. Nc4 {[%clk 0:03:06]}  Nc3 {[%clk 0:02:32]} 14. Bxc3 {[%clk 0:03:05]}  Bxc3 {[%clk 0:02:33]} 15. Rc1 {[%clk 0:03:06]}  Bf6 {[%clk 0:02:33]} 16. Bf3 {[%clk 0:03:02]}  Rb8 {[%clk 0:02:28]} 17. Nd6 {[%clk 0:02:59]}  Qb6 {[%clk 0:02:11]} 18. Ne4 {[%clk 0:02:46]}  Bb5 {[%clk 0:02:11]} 19. Nxf6+ {[%clk 0:02:45]}  gxf6 {[%clk 0:02:12]} 20. Re1 {[%clk 0:02:40]}  Rfd8 {[%clk 0:02:07]} 21. Qc2 {[%clk 0:02:34]}  Rd7 {[%clk 0:01:44]} 22. Qe4 {[%clk 0:02:20]}  f5 {[%clk 0:01:29]} 23. Qf4 {[%clk 0:02:19]}  Qd6 {[%clk 0:01:29]} 24. Qg5+ {[%clk 0:02:17]}  Kf8 {[%clk 0:01:25]} 25. Red1 {[%clk 0:02:09]}  Qe7 {[%clk 0:01:21]} 26. Qh6+ {[%clk 0:02:10]}  Kg8 {[%clk 0:01:20]} 27. Rxd7 {[%clk 0:02:01]}  Bxd7 {[%clk 0:01:19]} 28. Rc7 {[%clk 0:01:48]}  Rc8 {[%clk 0:01:18]} 29. Qf4 {[%clk 0:01:41]}  e5 {[%clk 0:00:54]} 30. Qc4 {[%clk 0:01:29]}  Rxc7 {[%clk 0:00:53]} 31. Qxc7 {[%clk 0:01:30]}  e4 {[%clk 0:00:52]} 32. Be2 {[%clk 0:01:24]}  Kf8 {[%clk 0:00:33]} 33. Qxb7 {[%clk 0:01:17]}  Qd6 {[%clk 0:00:29]} 34. Qxa7 {[%clk 0:01:07]}  Qd2 {[%clk 0:00:28]} 35. Bf1 {[%clk 0:01:05]}  Kg8 {[%clk 0:00:23]} 36. Qd4 {[%clk 0:01:04]} 1-0


[Site "https://www.chess.com"]

[Event "Titled Tuesday Blitz March 15 Early 2022"]
[White "Jeet, Jain"]
[Black "Aravindh, Chithambaram VR."]
[WhiteFideId "5073022"]
[BlackFideId "5072786"]
[WhiteElo "2085"]
[BlackElo "2561"]
[Result "0-1"]
[Round "03"]
[TimeControl "180+1"]
[Date "2022.03.15"]
[WhiteClock "0:00:12"]
[BlackClock "0:00:39"]

1. d4 {[%clk 0:02:55]}  g6 {[%clk 0:03:00]} 2. Nf3 {[%clk 0:02:49]}  Bg7 {[%clk 0:03:00]} 3. Bf4 {[%clk 0:02:48]}  d6 {[%clk 0:02:59]} 4. e3 {[%clk 0:02:49]}  Nd7 {[%clk 0:02:59]} 5. Nbd2 {[%clk 0:02:49]}  e5 {[%clk 0:02:59]} 6. Bg3 {[%clk 0:02:49]}  Ne7 {[%clk 0:02:59]} 7. Be2 {[%clk 0:02:47]}  O-O {[%clk 0:02:59]} 8. dxe5 {[%clk 0:02:43]}  dxe5 {[%clk 0:02:59]} 9. Nc4 {[%clk 0:02:44]}  f6 {[%clk 0:02:58]} 10. O-O {[%clk 0:02:42]}  Nc5 {[%clk 0:02:55]} 11. Qxd8 {[%clk 0:02:40]}  Rxd8 {[%clk 0:02:55]} 12. Rfd1 {[%clk 0:02:41]}  Be6 {[%clk 0:02:53]} 13. Na5 {[%clk 0:02:27]}  b6 {[%clk 0:02:49]} 14. Nb3 {[%clk 0:02:27]}  Na4 {[%clk 0:02:45]} 15. Rab1 {[%clk 0:02:22]}  Rxd1+ {[%clk 0:02:36]} 16. Bxd1 {[%clk 0:02:23]}  Rd8 {[%clk 0:02:36]} 17. Be2 {[%clk 0:02:18]}  Nf5 {[%clk 0:02:33]} 18. Ne1 {[%clk 0:02:11]}  Nxg3 {[%clk 0:02:13]} 19. hxg3 {[%clk 0:02:10]}  f5 {[%clk 0:02:13]} 20. Bb5 {[%clk 0:02:10]}  Nxb2 {[%clk 0:01:52]} 21. Rxb2 {[%clk 0:01:47]}  Rd1 {[%clk 0:01:51]} 22. Kf1 {[%clk 0:01:48]}  e4 {[%clk 0:01:52]} 23. Nd4 {[%clk 0:01:44]}  c5 {[%clk 0:01:50]} 24. c3 {[%clk 0:00:41]}  cxd4 {[%clk 0:01:45]} 25. cxd4 {[%clk 0:00:39]}  Bf8 {[%clk 0:01:35]} 26. Ke2 {[%clk 0:00:38]}  Ra1 {[%clk 0:01:28]} 27. a4 {[%clk 0:00:37]}  Ba3 {[%clk 0:01:22]} 28. Rc2 {[%clk 0:00:32]}  Bb4 {[%clk 0:01:22]} 29. Nf3 {[%clk 0:00:20]}  Bb3 {[%clk 0:00:43]} 30. Rc8+ {[%clk 0:00:19]}  Kg7 {[%clk 0:00:43]} 31. Rc7+ {[%clk 0:00:13]}  Kh6 {[%clk 0:00:40]} 32. Rxa7 {[%clk 0:00:12]}  Bd1+ {[%clk 0:00:39]} 0-1


[Site "https://www.chess.com"]

[Event "Titled Tuesday Blitz March 15 Early 2022"]
[White "Jumabayev, Rinat"]
[Black "Kanyamarala, Tarun"]
[WhiteFideId "13702661"]
[BlackFideId "45004714"]
[WhiteElo "2561"]
[BlackElo "2075"]
[Result "1-0"]
[Round "03"]
[TimeControl "180+1"]
[Date "2022.03.15"]
[WhiteClock "0:00:47"]
[BlackClock "0:00:05"]

1. e4 {[%clk 0:03:00]}  c5 {[%clk 0:02:59]} 2. Nf3 {[%clk 0:03:01]}  Nc6 {[%clk 0:03:00]} 3. Bb5 {[%clk 0:03:01]}  g6 {[%clk 0:03:00]} 4. O-O {[%clk 0:03:01]}  Bg7 {[%clk 0:03:00]} 5. Re1 {[%clk 0:03:01]}  e5 {[%clk 0:02:58]} 6. c3 {[%clk 0:02:55]}  Nge7 {[%clk 0:02:52]} 7. d4 {[%clk 0:02:55]}  exd4 {[%clk 0:02:46]} 8. cxd4 {[%clk 0:02:51]}  cxd4 {[%clk 0:02:41]} 9. Bf4 {[%clk 0:02:43]}  a6 {[%clk 0:02:40]} 10. Ba4 {[%clk 0:02:41]}  O-O {[%clk 0:02:28]} 11. Bd6 {[%clk 0:02:40]}  b5 {[%clk 0:02:28]} 12. Bb3 {[%clk 0:02:40]}  Bb7 {[%clk 0:02:27]} 13. e5 {[%clk 0:02:38]}  h6 {[%clk 0:02:08]} 14. Nbd2 {[%clk 0:02:24]}  Re8 {[%clk 0:02:07]} 15. Ne4 {[%clk 0:02:04]}  Nf5 {[%clk 0:02:00]} 16. Bd5 {[%clk 0:01:53]}  Ra7 {[%clk 0:01:46]} 17. Qb3 {[%clk 0:01:47]}  Re6 {[%clk 0:01:22]} 18. Nc5 {[%clk 0:01:20]}  Na5 {[%clk 0:01:18]} 19. Nxb7 {[%clk 0:01:19]}  Rxb7 {[%clk 0:00:49]} 20. Qd3 {[%clk 0:01:14]}  Nxd6 {[%clk 0:00:38]} 21. exd6 {[%clk 0:01:13]}  Rxd6 {[%clk 0:00:37]} 22. Bxb7 {[%clk 0:01:11]}  Nxb7 {[%clk 0:00:37]} 23. Rac1 {[%clk 0:01:11]}  Re6 {[%clk 0:00:29]} 24. Red1 {[%clk 0:01:02]}  Nd6 {[%clk 0:00:13]} 25. Nxd4 {[%clk 0:01:00]}  Rf6 {[%clk 0:00:12]} 26. b3 {[%clk 0:00:59]}  Qb6 {[%clk 0:00:12]} 27. Nf3 {[%clk 0:00:58]}  g5 {[%clk 0:00:08]} 28. Qd4 {[%clk 0:00:54]}  Qa5 {[%clk 0:00:09]} 29. Qc5 {[%clk 0:00:50]}  Ne4 {[%clk 0:00:06]} 30. Qc2 {[%clk 0:00:49]}  g4 {[%clk 0:00:04]} 31. Qxe4 {[%clk 0:00:46]}  gxf3 {[%clk 0:00:04]} 32. Rc8+ {[%clk 0:00:47]}  Bf8 {[%clk 0:00:05]} 33. Qe7 {[%clk 0:00:47]} 1-0


[Site "https://www.chess.com"]